[Event "UKR-ch Women 2020"]
[Site "Kherson"]
[Date "2020.12.07"]
[Round "2.8"]
[White "Grineva, Marianna"]
[Black "Tsirulnik, Maritsa"]
[Result "0-1"]
[ECO "B82"]
[WhiteElo "2001"]
[BlackElo "2139"]
[Annotator "NA RC"]
[PlyCount "60"]
[EventDate "2020.12.06"]
[EventType "swiss"]
[EventCountry "UKR"]
[SourceTitle "playchess.com"]
[Source "ChessBase"]
[SourceQuality "1"]
[TimeControl "40/5400+30:1800+30"]

1. e4 {[%emt 0:00:00]} c5 {[%emt 0:00:00]} 2. Nf3 {[%emt 0:00:00]} e6 {[%emt 0:00:00]} 3. d4 {[%emt 0:00:00]} cxd4 {[%emt 0:00:00]} 4. Nxd4 {[%emt 0:00:00]} Nc6 {[%emt 0:00:00]} 5. Nc3 {[%emt 0:00:53]} d6 {[%emt 0:00:00]} 6. Be3 {[%emt 0:02:03]} Nf6 {[%emt 0:01:09]} 7. f4 {[%emt 0:01:44]} Be7 {[%emt 0:01:05]} 8. Qf3 {[%emt 0:00:44]} e5 {[%emt 0:01:39]} 9. Nxc6 {[%emt 0:01:58]} bxc6 {[%emt 0:00:05]} 10. f5 {[%emt 0:00:14]} d5 {[%emt 0:00:32]} 11. exd5 {[%emt 0:06:28]} cxd5 {[%emt 0:00:07]} 12. O-O-O {[%emt 0:01:01]} Bb7 {[%emt 0:00:27]} 13. Bb5+ {[%emt 0:06:38]} Kf8 {[%emt 0:00:09]} 14. Bg5 {[%emt 0:07:47]} Qb6 {[%emt 0:20:48]} 15. Qe2 {[%emt 0:03:15]} d4 {[%emt 0:18:06]} 16. Qxe5 $2 {[%emt 0:28:39]} (16. Na4 $15 Qc7 17. Rhe1) 16... dxc3 {[%emt 0:01:21]} 17. Be3 {[%emt 0:03:13]} Qa5 {[%emt 0:00:58]} 18. Rhe1 {[%emt 0:04:35]} Ne4 $19 {[%emt 0:31:06]} ({Avoid the trap} 18... Ng4 $2 {[#]} 19. Qxe7+ $1 {[%mdl 512]} Kxe7 20. Bb6+ Kf6 21. Bxa5 $18) 19. Bd4 {[%emt 0:25:03]} cxb2+ {[%emt 0:04:19]} 20. Kb1 {[%emt 0:02:23]} Bf6 {[%emt 0:01:59]} 21. Rxe4 {[%emt 0:01:47]} Bxe5 {[%emt 0:00:37]} 22. Rxe5 {[%emt 0:00:05]} Kg8 {[%emt 0:06:02]} 23. Rde1 {[%emt 0:01:48]} h6 {[%emt 0:01:32]} 24. Bd3 {[%emt 0:00:47]} Qd8 {[%emt 0:00:28]} 25. c3 {[%emt 0:00:23]} Bc6 {[%emt 0:03:06]} 26. Bc4 {[%emt 0:00:31]} Qg5 {[%emt 0:03:58]} 27. g3 {[%emt 0:00:51]} Bd7 {[%emt 0:01:05]} 28. Bd3 {[%emt 0:00:31]} f6 {[%emt 0:01:33]} 29. Rd5 {[%emt 0:00:36]} Qd2 {[%emt 0:00:17]} 30. Rxd7 {[%emt 0:00:28]} Qxd3+ 0-1

[Event "UKR-ch Women 2020"]
[Site "Kherson"]
[Date "2020.12.07"]
[Round "2.9"]
[White "Yeshchenko, Uliana"]
[Black "Rakhmangulova, Anastasiya"]
[Result "0-1"]
[ECO "B26"]
[WhiteElo "1872"]
[BlackElo "2132"]
[Annotator "NA RC"]
[PlyCount "64"]
[EventDate "2020.12.06"]
[EventType "swiss"]
[EventCountry "UKR"]
[SourceTitle "playchess.com"]
[Source "ChessBase"]
[SourceQuality "1"]
[TimeControl "40/5400+30:1800+30"]

1. e4 {[%emt 0:00:00]} c5 {[%emt 0:00:00]} 2. Nc3 {[%emt 0:00:00]} Nc6 {[%emt 0:00:00]} 3. g3 {[%emt 0:00:00]} g6 {[%emt 0:00:00]} 4. Bg2 {[%emt 0:00:00]} Bg7 {[%emt 0:00:00]} 5. d3 {[%emt 0:00:00]} d6 {[%emt 0:00:00]} 6. Be3 {[%emt 0:00:13]} Nh6 {[%emt 0:00:00]} 7. h3 {[%emt 0:01:06]} f5 {[%emt 0:00:02]} 8. Qd2 {[%emt 0:04:29]} Nf7 {[%emt 0:00:12]} 9. exf5 {[%emt 0:06:16]} Bxf5 {[%emt 0:01:53]} 10. Nf3 {[%emt 0:02:50]} Nd4 {[%emt 0:05:55]} 11. Nd1 {[%emt 0:13:55]} O-O {[%emt 0:01:37]} 12. Ng5 {[%emt 0:06:41]} Nxg5 {[%emt 0:12:57]} 13. Bxg5 {[%emt 0:00:11]} Bd7 {[%emt 0:00:04]} 14. Nc3 {[%emt 0:08:31]} Qa5 {[%emt 0:06:28]} 15. f4 {[%emt 0:11:22]} Rae8 {[%emt 0:14:05]} 16. O-O {[%emt 0:02:47]} h6 {[%emt 0:04:14]} 17. Bh4 {[%emt 0:00:11]} Nf5 {[%emt 0:00:05]} 18. Kh2 {[%emt 0:06:26]} Qb4 {[%emt 0:02:48]} 19. Ne4 {[%emt 0:09:19]} Qxd2 {[%emt 0:02:15]} 20. Nxd2 {[%emt 0:00:07]} Ne3 {[%emt 0:00:04]} 21. Rg1 {[%emt 0:02:46]} Nxc2 {[%emt 0:00:34]} 22. Rab1 {[%emt 0:03:23]} Bd4 {[%emt 0:04:17]} 23. Rgc1 {[%emt 0:03:07]} Ne3 {[%emt 0:00:11]} 24. Ne4 {[%emt 0:05:06]} Bb5 {[%emt 0:03:41]} 25. Re1 {[%emt 0:04:16]} Bxd3 $19 {[%emt 0:02:51]} 26. Rbc1 {[%emt 0:00:17]} c4 {[%emt 0:05:27]} 27. Nc3 {[%emt 0:01:29]} g5 {[%emt 0:10:33]} 28. fxg5 {[%emt 0:00:49]} Rf2 {[%emt 0:00:04]} 29. Rg1 {[%emt 0:00:22]} Rxb2 {[%emt 0:08:36]} 30. gxh6 {[%emt 0:02:50]} Rf8 {[%emt 0:03:35]} 31. g4 {[%emt 0:00:38]} Be5+ {[%emt 0:00:16]} 32. Kh1 {[%emt 0:01:36]} Nxg2 {[%emt 0:00:36]} 0-1

[Event "UKR-ch Women 2020"]
[Site "Kherson"]
[Date "2020.12.07"]
[Round "2.10"]
[White "Barchuk, Irina"]
[Black "Dubovyk, Anastasiia"]
[Result "1/2-1/2"]
[ECO "B56"]
[WhiteElo "2075"]
[BlackElo "1971"]
[Annotator "NA RC"]
[PlyCount "112"]
[EventDate "2020.12.06"]
[EventType "swiss"]
[EventCountry "UKR"]
[SourceTitle "playchess.com"]
[Source "ChessBase"]
[SourceQuality "1"]
[TimeControl "40/5400+30:1800+30"]

1. e4 {[%emt 0:00:00]} c5 {[%emt 0:00:00]} 2. Nf3 {[%emt 0:00:00]} d6 {[%emt 0:00:00]} 3. d4 {[%emt 0:00:00]} cxd4 {[%emt 0:00:15]} 4. Nxd4 {[%emt 0:00:00]} Nf6 {[%emt 0:00:10]} 5. Nc3 {[%emt 0:00:00]} Nc6 {[%emt 0:00:09]} 6. Nde2 {[%emt 0:03:22]} e5 {[%emt 0:07:14]} 7. g3 {[%emt 0:01:32]} Be7 {[%emt 0:01:40]} 8. Bg2 {[%emt 0:00:07]} O-O {[%emt 0:02:11]} 9. O-O {[%emt 0:00:05]} a6 {[%emt 0:03:41]} 10. a4 {[%emt 0:03:41]} Nb4 {[%emt 0:22:57]} 11. b3 {[%emt 0:09:16]} Be6 {[%emt 0:08:57]} 12. Ba3 {[%emt 0:00:45]} a5 {[%emt 0:15:39]} 13. Qd2 {[%emt 0:04:35]} Qb6 {[%emt 0:04:07]} 14. Nb5 $1 {[%emt 0:05:26] [#]} Rac8 $146 {[%emt 0:05:41]} ({Predecessor:} 14... d5 15. exd5 Nfxd5 16. Bb2 Nc7 17. Bxe5 Nxb5 18. axb5 Qxb5 19. Bb2 Rfd8 20. Nd4 Qd7 {½-½ (20) Kosic,B (2407)-Wenzel,S (2380) ICCF email 2015}) 15. c4 {[%emt 0:01:43]} Na6 {[%emt 0:02:33]} 16. h3 {[%emt 0:09:33]} Nc5 {[%emt 0:02:03]} 17. Qe3 {[%emt 0:04:45]} Ne8 {[%emt 0:06:42]} 18. Nec3 {[%emt 0:04:18]} Nc7 {[%emt 0:01:37]} 19. Rfd1 {[%emt 0:09:42]} Nxb5 {[%emt 0:02:59]} 20. axb5 {[%emt 0:00:32]} Qc7 {[%emt 0:03:15]} 21. Bxc5 {[%emt 0:01:25]} dxc5 {[%emt 0:00:16]} 22. h4 {[%emt 0:00:53]} Rcd8 {[%emt 0:01:39]} 23. Kh2 $14 {[%emt 0:00:48]} Rxd1 {[%emt 0:02:49]} 24. Rxd1 {[%emt 0:00:04]} Rd8 {[%emt 0:00:13]} 25. Rd3 {[%emt 0:02:24]} Rd4 {[%emt 0:01:03]} 26. Ne2 {[%emt 0:01:05]} Rd6 {[%emt 0:01:30]} 27. Bh3 {[%emt 0:07:18]} Qd7 {[%emt 0:02:34]} 28. Bxe6 {[%emt 0:02:09]} fxe6 {[%emt 0:00:07]} 29. Rxd6 {[%emt 0:01:06]} Qxd6 {[%emt 0:00:12]} 30. Kg2 {[%emt 0:07:57]} h5 {[%emt 0:01:28]} 31. Ng1 {[%emt 0:05:35]} b6 {[%emt 0:01:11]} 32. Qe2 {[%emt 0:00:54]} g6 {[%emt 0:00:25]} 33. Nf3 {[%emt 0:00:10]} Kg7 {[%emt 0:00:36]} 34. Qc2 {[%emt 0:01:41]} Bf6 {[%emt 0:00:29]} 35. Kf1 {[%emt 0:00:10]} Qd8 {[%emt 0:00:35]} 36. Ke2 {[%emt 0:00:17]} Qd6 {[%emt 0:00:31]} 37. Qb2 {[%emt 0:04:15]} Kf7 {[%emt 0:00:28]} 38. Qa1 {[%emt 0:00:07]} Kg7 {[%emt 0:00:31]} 39. Qg1 {[%emt 0:00:26]} Qd8 {[%emt 0:00:30]} 40. g4 {[%emt 0:00:00]} Qa8 {[%emt 0:00:00]} 41. Ke3 {[%emt 0:08:18]} Kf7 {[%emt 0:15:10]} 42. Qd1 {[%emt 0:12:02]} Ke7 {[%emt 0:01:14]} 43. g5 {[%emt 0:02:18]} Bg7 {[%emt 0:00:25]} 44. Ne1 {[%emt 0:00:24]} Qd8 {[%emt 0:08:15]} 45. Qxd8+ {[%emt 0:00:22]} Kxd8 {[%emt 0:00:01]} 46. Nd3 {[%emt 0:00:19]} Ke7 {[%emt 0:00:30]} 47. f4 {[%emt 0:01:03]} Kd6 {[%emt 0:04:32]} 48. Kf3 {[%emt 0:02:03]} Ke7 {[%emt 0:01:20]} 49. fxe5 {[%emt 0:02:28]} Kf7 {[%emt 0:01:09]} 50. Kf4 {[%emt 0:07:32]} Bf8 {[%emt 0:00:17]} 51. Nb2 {[%emt 0:00:31]} Be7 {[%emt 0:00:07]} 52. Na4 {[%emt 0:00:10]} Bd8 {[%emt 0:00:06]} 53. Nc3 {[%emt 0:00:05]} Bc7 {[%emt 0:00:17]} 54. Nd5 {[%emt 0:01:49]} exd5 {[%emt 0:00:25]} 55. exd5 {[%emt 0:00:18]} Ke7 {[%emt 0:00:29]} 56. Ke4 {[%emt 0:01:27]} Bb8 {[%emt 0:00:41]} 1/2-1/2

[Event "UKR-ch Women 2020"]
[Site "Kherson"]
[Date "2020.12.08"]
[Round "3.1"]
[White "Berdnyk, Mariia"]
[Black "Osmak, Iulija"]
[Result "1/2-1/2"]
[ECO "A40"]
[WhiteElo "2324"]
[BlackElo "2438"]
[Annotator "ChessBase"]
[PlyCount "121"]
[EventDate "2020.12.06"]
[EventType "swiss"]
[EventCountry "UKR"]
[SourceTitle "playchess.com"]
[Source "ChessBase"]
[SourceQuality "1"]
[TimeControl "40/5400+30:1800+30"]

1. d4 {[%emt 0:00:00]} Nf6 {[%emt 0:00:00]} 2. c4 {[%emt 0:00:00]} e6 {[%emt 0:00:00]} 3. g3 {[%emt 0:00:00]} d5 {[%emt 0:00:00]} 4. Nf3 {[%emt 0:00:00]} Bb4+ {[%emt 0:00:13]} 5. Bd2 {[%emt 0:00:29]} Be7 {[%emt 0:00:11]} 6. Bg2 {[%emt 0:00:27]} O-O {[%emt 0:00:24]} 7. O-O {[%emt 0:00:11]} Nbd7 {[%emt 0:00:24]} 8. Qc2 {[%emt 0:01:24]} Ne4 {[%emt 0:00:41]} 9. Bf4 {[%emt 0:03:13]} c6 {[%emt 0:00:18]} 10. Nc3 {[%emt 0:04:18]} g5 {[%emt 0:00:29]} 11. Be3 {[%emt 0:01:09]} Nd6 {[%emt 0:00:12]} 12. cxd5 {[%emt 0:04:01]} exd5 {[%emt 0:01:27]} 13. Rad1 {[%emt 0:00:54]} Nb6 {[%emt 0:09:22]} 14. b3 {[%emt 0:05:04]} Bf5 {[%emt 0:03:42]} 15. Qc1 {[%emt 0:01:30]} h6 {[%emt 0:02:27]} 16. Ne5 {[%emt 0:05:50]} f6 {[%emt 0:08:22]} 17. Nd3 {[%emt 0:00:52]} Qe8 {[%emt 0:05:47]} 18. f3 {[%emt 0:03:41]} Bxd3 {[%emt 0:08:04]} 19. Rxd3 {[%emt 0:00:12]} f5 {[%emt 0:00:48]} 20. Bf2 {[%emt 0:08:28]} Qg6 {[%emt 0:01:40]} 21. Rdd1 {[%emt 0:01:34]} Nd7 {[%emt 0:06:37]} 22. Qb1 {[%emt 0:07:30]} Nf6 {[%emt 0:01:05]} 23. g4 {[%emt 0:04:39]} Kh7 {[%emt 0:04:10]} 24. gxf5 {[%emt 0:01:19]} Nxf5 {[%emt 0:00:24]} 25. e4 {[%emt 0:01:16]} Ng7 {[%emt 0:00:47]} 26. Kh1 {[%emt 0:07:28]} Bb4 {[%emt 0:16:24]} 27. Ne2 {[%emt 0:00:25]} Nfh5 {[%emt 0:04:58]} 28. exd5 {[%emt 0:13:16]} Qxb1 {[%emt 0:03:16]} 29. Rxb1 {[%emt 0:00:01]} Rae8 {[%emt 0:05:09]} 30. Rb2 {[%emt 0:01:08]} cxd5 {[%emt 0:00:35]} 31. f4 {[%emt 0:00:18]} Nxf4 {[%emt 0:03:56]} 32. Nxf4 {[%emt 0:00:06]} Rxf4 {[%emt 0:00:06]} 33. Bxd5 {[%emt 0:00:29]} Ref8 {[%emt 0:00:56]} 34. Kg2 {[%emt 0:03:17]} Nf5 {[%emt 0:03:03]} 35. Rc1 {[%emt 0:04:51]} Rxf2+ {[%emt 0:05:51]} 36. Rxf2 {[%emt 0:00:18]} Ne3+ {[%emt 0:00:05]} 37. Kg1 {[%emt 0:00:05]} Nxd5 {[%emt 0:00:22]} 38. Rxf8 {[%emt 0:00:15]} Bxf8 {[%emt 0:00:05]} 39. Rc8 {[%emt 0:00:28]} Bg7 {[%emt 0:02:51]} 40. Rd8 {[%emt 0:00:00]} Nc3 {[%emt 0:00:00]} 41. d5 {[%emt 0:12:56]} Bd4+ {[%emt 0:17:24]} 42. Kg2 {[%emt 0:09:42]} Bb6 {[%emt 0:04:27]} 43. Rd7+ {[%emt 0:00:45]} Kg6 {[%emt 0:00:05]} 44. a4 {[%emt 0:05:47]} Kf6 {[%emt 0:03:51]} 45. d6 {[%emt 0:00:25]} Ke6 {[%emt 0:05:27]} 46. Rxb7 {[%emt 0:00:06]} Kxd6 {[%emt 0:00:14]} 47. Rh7 {[%emt 0:05:51]} Nd5 {[%emt 0:04:31]} 48. Rxh6+ {[%emt 0:03:28]} Kc5 {[%emt 0:00:04]} 49. Kf3 {[%emt 0:00:20]} Kb4 {[%emt 0:02:11]} 50. Rg6 {[%emt 0:01:05]} a5 {[%emt 0:00:55]} 51. Ke4 {[%emt 0:03:33]} Nc3+ {[%emt 0:00:11]} 52. Kd3 {[%emt 0:00:07]} Bd8 {[%emt 0:00:55]} 53. Rg8 {[%emt 0:03:25]} Bc7 {[%emt 0:00:25]} 54. Rxg5 {[%emt 0:00:53]} Bxh2 {[%emt 0:00:12]} 55. Kc2 {[%emt 0:00:13]} Bf4 {[%emt 0:00:47]} 56. Rf5 {[%emt 0:01:29]} Bd6 {[%emt 0:00:36]} 57. Rh5 {[%emt 0:01:01]} Ne2 {[%emt 0:00:28]} 58. Rd5 {[%emt 0:01:03]} Bc5 {[%emt 0:00:13]} 59. Kb2 {[%emt 0:01:29]} Nd4 {[%emt 0:00:44]} 60. Rd7 {[%emt 0:00:17]} Bb6 {[%emt 0:00:29]} 61. Rb7 {[%emt 0:00:28]} 1/2-1/2

[Event "UKR-ch Women 2020"]
[Site "Kherson"]
[Date "2020.12.08"]
[Round "3.2"]
[White "Doluhanova, Evgeniya"]
[Black "Shpanko, Nadiia"]
[Result "1/2-1/2"]
[ECO "B10"]
[WhiteElo "2229"]
[BlackElo "2235"]
[Annotator "NA"]
[PlyCount "169"]
[EventDate "2020.12.06"]
[EventType "swiss"]
[EventCountry "UKR"]
[SourceTitle "playchess.com"]
[Source "ChessBase"]
[SourceQuality "1"]
[TimeControl "40/5400+30:1800+30"]

1. e4 {[%emt 0:01:11]} c6 {[%emt 0:00:00]} 2. d3 {[%emt 0:07:26]} d5 {[%emt 0:00:08]} 3. Qe2 {[%emt 0:01:10]} Qc7 {[%emt 0:05:30]} 4. Nf3 {[%emt 0:05:54]} Bg4 {[%emt 0:02:01]} 5. h3 {[%emt 0:00:49]} Bh5 {[%emt 0:00:28]} 6. g4 {[%emt 0:02:30]} Bg6 {[%emt 0:00:06]} 7. Nc3 {[%emt 0:01:24]} dxe4 {[%emt 0:01:23]} 8. Nxe4 {[%emt 0:05:51]} Nd7 {[%emt 0:01:18]} 9. Bd2 {[%emt 0:00:40]} Ngf6 {[%emt 0:00:34]} 10. Nxf6+ {[%emt 0:01:04]} gxf6 {[%emt 0:00:47]} 11. Bg2 {[%emt 0:01:47]} O-O-O {[%emt 0:04:03]} 12. O-O-O {[%emt 0:01:46]} e5 {[%emt 0:07:23]} 13. d4 {[%emt 0:12:36]} Bd6 {[%emt 0:06:02]} 14. Bc3 {[%emt 0:07:23]} Rhe8 {[%emt 0:03:17]} 15. d5 {[%emt 0:02:48]} Nc5 {[%emt 0:07:22]} 16. dxc6 {[%emt 0:05:58]} Qxc6 {[%emt 0:00:25]} 17. Nh4 {[%emt 0:05:13]} Be4 {[%emt 0:03:50]} 18. Bxe4 {[%emt 0:08:51]} Nxe4 {[%emt 0:00:08]} 19. Ba5 {[%emt 0:01:35]} b6 {[%emt 0:00:56]} 20. Rhe1 {[%emt 0:13:54]} Ng5 {[%emt 0:02:52]} 21. Bd2 {[%emt 0:01:49]} Ne6 {[%emt 0:04:01]} 22. Nf5 {[%emt 0:00:58]} Bf8 {[%emt 0:01:52]} 23. Qe4 {[%emt 0:02:41]} Qxe4 {[%emt 0:05:31]} 24. Rxe4 {[%emt 0:00:05]} Kb7 {[%emt 0:05:52]} 25. c3 {[%emt 0:01:48]} Bc5 {[%emt 0:00:50]} 26. b4 {[%emt 0:01:23]} Bf8 {[%emt 0:03:16]} 27. Kc2 {[%emt 0:00:15]} Rd7 {[%emt 0:02:18]} 28. Be3 {[%emt 0:01:10]} Rxd1 {[%emt 0:01:01]} 29. Kxd1 {[%emt 0:00:06]} Nc7 {[%emt 0:00:14]} 30. Kc2 {[%emt 0:01:32]} Nd5 {[%emt 0:01:53]} 31. a3 {[%emt 0:00:48]} Rc8 {[%emt 0:01:59]} 32. c4 {[%emt 0:00:54]} Nc7 {[%emt 0:02:26]} 33. Kb3 {[%emt 0:01:41]} Ne8 {[%emt 0:00:46]} 34. Bd2 {[%emt 0:00:21]} Nd6 {[%emt 0:01:58]} 35. Nxd6+ {[%emt 0:00:04]} Bxd6 {[%emt 0:00:04]} 36. Re3 {[%emt 0:00:20]} Rd8 {[%emt 0:00:27]} 37. Rd3 {[%emt 0:00:26]} Kc6 {[%emt 0:06:31]} 38. Bc3 {[%emt 0:01:09]} Be7 {[%emt 0:06:43]} 39. b5+ {[%emt 0:00:49]} Kc7 {[%emt 0:00:16]} 40. Rxd8 {[%emt 0:00:00]} Bxd8 {[%emt 0:00:00]} 41. Kc2 {[%emt 0:02:53]} Kd6 {[%emt 0:08:29]} 42. Kd3 {[%emt 0:00:20]} Ke6 {[%emt 0:00:20]} 43. Ke4 {[%emt 0:00:14]} Bc7 {[%emt 0:00:15]} 44. Bb4 {[%emt 0:00:24]} Bb8 {[%emt 0:00:20]} 45. f3 {[%emt 0:00:31]} Bc7 {[%emt 0:00:41]} 46. h4 {[%emt 0:08:01]} Bd8 {[%emt 0:00:24]} 47. c5 {[%emt 0:05:24]} Bc7 {[%emt 0:02:50]} 48. a4 {[%emt 0:01:12]} Bd8 {[%emt 0:02:40]} 49. c6 {[%emt 0:02:23]} Bc7 {[%emt 0:00:26]} 50. Bd2 {[%emt 0:00:26]} Kd6 {[%emt 0:07:23]} 51. Be3 {[%emt 0:00:37]} Ke6 {[%emt 0:03:38]} 52. f4 {[%emt 0:01:53]} Bd8 {[%emt 0:02:07]} 53. Bd2 {[%emt 0:01:09]} Bc7 {[%emt 0:04:13]} 54. f5+ {[%emt 0:01:24]} Ke7 {[%emt 0:00:05]} 55. Bb4+ {[%emt 0:00:50]} Kd8 {[%emt 0:01:34]} 56. g5 {[%emt 0:00:40]} Ke8 {[%emt 0:02:09]} 57. gxf6 {[%emt 0:00:51]} Kd8 {[%emt 0:00:04]} 58. Bc3 {[%emt 0:00:43]} Bd6 {[%emt 0:00:41]} 59. Bxe5 {[%emt 0:00:08]} Bb4 {[%emt 0:00:45]} 60. Kf4 {[%emt 0:01:43]} Kc8 {[%emt 0:01:01]} 61. Kg5 {[%emt 0:00:08]} Bf8 {[%emt 0:00:18]} 62. Kh5 {[%emt 0:01:01]} Kd8 {[%emt 0:00:42]} 63. Bf4 {[%emt 0:01:47]} Kc8 {[%emt 0:00:07]} 64. Kg4 {[%emt 0:02:06]} Bc5 {[%emt 0:00:26]} 65. h5 {[%emt 0:00:21]} Bf8 {[%emt 0:01:44]} 66. Kf3 {[%emt 0:00:18]} Bb4 {[%emt 0:00:25]} 67. Ke4 {[%emt 0:00:05]} Ba3 {[%emt 0:00:35]} 68. Kd5 {[%emt 0:00:22]} Bb4 {[%emt 0:01:25]} 69. Be5 {[%emt 0:00:08]} Ba3 {[%emt 0:00:26]} 70. Bc3 {[%emt 0:00:05]} Kc7 {[%emt 0:01:20]} 71. a5 {[%emt 0:00:35]} Bf8 {[%emt 0:02:31]} 72. Be5+ {[%emt 0:01:59]} Kc8 {[%emt 0:00:14]} 73. a6 {[%emt 0:01:16]} Bb4 {[%emt 0:00:55]} 74. Bf4 {[%emt 0:00:58]} Ba3 {[%emt 0:00:35]} 75. Bd6 {[%emt 0:00:53]} Bc1 {[%emt 0:00:39]} 76. Be5 {[%emt 0:01:06]} Ba3 {[%emt 0:00:06]} 77. Bc3 {[%emt 0:04:24]} Kc7 {[%emt 0:00:48]} 78. Kc4 {[%emt 0:00:09]} Kc8 {[%emt 0:01:22]} 79. Bb4 {[%emt 0:00:09]} Bc1 {[%emt 0:00:12]} 80. Kd5 {[%emt 0:00:15]} Bf4 {[%emt 0:00:18]} 81. Bd6 {[%emt 0:00:21]} Bc1 {[%emt 0:00:14]} 82. Bc5 {[%emt 0:01:44]} Kc7 {[%emt 0:00:40]} 83. Bd4 {[%emt 0:00:45]} Ba3 {[%emt 0:00:19]} 84. Be5+ {[%emt 0:00:06]} Kc8 {[%emt 0:00:08]} 85. Bd6 {[%emt 0:00:13]} 1/2-1/2

[Event "UKR-ch Women 2020"]
[Site "Kherson"]
[Date "2020.12.08"]
[Round "3.3"]
[White "Buksa, Nataliya"]
[Black "Babiy, Olga"]
[Result "1-0"]
[ECO "B12"]
[WhiteElo "2410"]
[BlackElo "2271"]
[Annotator "NA"]
[PlyCount "67"]
[EventDate "2020.12.06"]
[EventType "swiss"]
[EventCountry "UKR"]
[SourceTitle "playchess.com"]
[Source "ChessBase"]
[SourceQuality "1"]
[TimeControl "40/5400+30:1800+30"]

1. e4 {[%emt 0:00:00]} c6 {[%emt 0:00:00]} 2. d4 {[%emt 0:00:00]} d5 {[%emt 0:00:00]} 3. f3 {[%emt 0:00:00]} e6 {[%emt 0:00:31]} 4. Nc3 {[%emt 0:00:37]} Qb6 {[%emt 0:05:16]} 5. a3 {[%emt 0:00:17]} Ne7 {[%emt 0:02:44]} 6. Be3 {[%emt 0:11:45]} Ng6 {[%emt 0:02:28]} 7. e5 {[%emt 0:02:52]} Nxe5 {[%emt 0:11:43]} 8. b3 {[%emt 0:22:43]} Ng6 {[%emt 0:10:21]} 9. Qd2 {[%emt 0:00:04]} Nd7 {[%emt 0:00:33]} 10. h4 {[%emt 0:04:18]} h5 {[%emt 0:08:56]} 11. Bd3 {[%emt 0:00:29]} f5 {[%emt 0:00:19]} 12. Nge2 {[%emt 0:19:08]} Nf6 {[%emt 0:06:09]} 13. b4 {[%emt 0:07:15]} a5 {[%emt 0:04:31]} 14. b5 {[%emt 0:00:21]} a4 {[%emt 0:00:20]} 15. bxc6 {[%emt 0:03:49]} bxc6 {[%emt 0:00:09]} 16. Bg5 {[%emt 0:01:52]} Bd6 {[%emt 0:03:59]} 17. Nf4 {[%emt 0:06:06]} Bxf4 {[%emt 0:02:44]} 18. Bxf4 {[%emt 0:00:27]} Qxd4 {[%emt 0:00:45]} 19. Bg3 {[%emt 0:01:35]} Ne5 {[%emt 0:08:23]} 20. Bb5 {[%emt 0:03:25]} Qxd2+ {[%emt 0:00:53]} 21. Kxd2 {[%emt 0:00:03]} Nxf3+ {[%emt 0:03:25]} 22. gxf3 {[%emt 0:00:04]} cxb5 {[%emt 0:00:03]} 23. Nxb5 {[%emt 0:00:03]} O-O {[%emt 0:03:31]} 24. Rae1 {[%emt 0:05:29]} Ra6 {[%emt 0:01:33]} 25. Rhg1 {[%emt 0:01:37]} Bd7 {[%emt 0:01:11]} 26. Nd4 {[%emt 0:00:04]} Rb6 {[%emt 0:05:07]} 27. Be5 {[%emt 0:00:03]} Kf7 {[%emt 0:01:02]} 28. Rg5 {[%emt 0:00:21]} g6 {[%emt 0:02:18]} 29. Reg1 {[%emt 0:00:28]} Rg8 {[%emt 0:00:02]} 30. Ne2 {[%emt 0:00:32]} Rc6 {[%emt 0:08:30]} 31. Nf4 {[%emt 0:00:58]} Rc4 {[%emt 0:07:31]} 32. Nxg6 {[%emt 0:00:35]} Be8 {[%emt 0:00:27]} 33. Nh8+ {[%emt 0:01:17]} Rxh8 {[%emt 0:00:01]} 34. Rg7+ {[%emt 0:00:10]} 1-0

[Event "UKR-ch Women 2020"]
[Site "Kherson"]
[Date "2020.12.08"]
[Round "3.4"]
[White "Hryzlova, Sofiia"]
[Black "Gaponenko, Inna"]
[Result "1/2-1/2"]
[ECO "A34"]
[WhiteElo "2064"]
[BlackElo "2390"]
[Annotator "NA"]
[PlyCount "57"]
[EventDate "2020.12.06"]
[EventType "swiss"]
[EventCountry "UKR"]
[SourceTitle "playchess.com"]
[Source "ChessBase"]
[SourceQuality "1"]
[TimeControl "40/5400+30:1800+30"]

1. c4 {[%emt 0:00:50]} c5 {[%emt 0:00:00]} 2. Nc3 {[%emt 0:00:15]} g6 {[%emt 0:01:39]} 3. Nf3 {[%emt 0:01:15]} Bg7 {[%emt 0:00:31]} 4. e3 {[%emt 0:06:35]} Nf6 {[%emt 0:03:44]} 5. d4 {[%emt 0:02:03]} O-O {[%emt 0:02:36]} 6. Be2 {[%emt 0:05:45]} d5 {[%emt 0:10:48]} 7. dxc5 {[%emt 0:07:52]} dxc4 {[%emt 0:00:27]} 8. Qa4 {[%emt 0:01:20]} Nd5 {[%emt 0:45:06]} 9. O-O {[%emt 0:18:57]} Nxc3 {[%emt 0:10:36]} 10. bxc3 {[%emt 0:00:07]} Bxc3 {[%emt 0:01:13]} 11. Rb1 {[%emt 0:01:21]} Bf6 {[%emt 0:00:53]} 12. Qxc4 {[%emt 0:06:11]} Nc6 {[%emt 0:00:40]} 13. Bb2 {[%emt 0:05:15]} Bf5 {[%emt 0:08:52]} 14. e4 {[%emt 0:05:58]} Be6 {[%emt 0:00:24]} 15. Qa4 {[%emt 0:01:12]} Qa5 {[%emt 0:03:19]} 16. Qxa5 {[%emt 0:04:43]} Nxa5 {[%emt 0:00:02]} 17. e5 {[%emt 0:00:14]} Bg7 {[%emt 0:00:04]} 18. Bc3 {[%emt 0:00:50]} Nc6 {[%emt 0:05:14]} 19. Rxb7 {[%emt 0:02:23]} Bxa2 {[%emt 0:00:05]} 20. Bb5 {[%emt 0:03:45]} Rfc8 {[%emt 0:01:26]} 21. Bxc6 {[%emt 0:06:47]} Rxc6 {[%emt 0:00:01]} 22. Bb4 {[%emt 0:00:10]} a5 {[%emt 0:01:43]} 23. Ba3 {[%emt 0:00:09]} Bd5 {[%emt 0:01:00]} 24. Nd4 {[%emt 0:10:22]} Rxc5 {[%emt 0:00:04]} 25. Rd7 {[%emt 0:00:05]} Rc3 {[%emt 0:00:07]} 26. Bb2 {[%emt 0:00:10]} Rc5 {[%emt 0:00:18]} 27. Ba3 {[%emt 0:01:30]} Rc3 {[%emt 0:00:08]} 28. Bb2 {[%emt 0:00:33]} Rc5 {[%emt 0:01:01]} 29. Ba3 1/2-1/2